[Event "Titled Tuesday Blitz July 18 Early 2023"]
[White "Ashraf, Artin"]
[Black "Gaal, Zsoka"]
[WhiteFideId "22514805"]
[BlackFideId "777765"]
[WhiteElo "2740"]
[BlackElo "2415"]
[Result "1/2-1/2"]
[Round "1"]
[TimeControl "180+2"]
[Date "2023.07.18"]
[WhiteClock "0:00:15"]
[BlackClock "0:00:03"]
[Board "80"]

1. f4 {[%clk 0:02:51]}  Nh6 {[%clk 0:02:58]} 2. e4 {[%clk 0:02:09]}  d5 {[%clk 0:02:56]} 3. e5 {[%clk 0:02:07]}  c5 {[%clk 0:02:49]} 4. Nf3 {[%clk 0:02:02]}  Nc6 {[%clk 0:02:47]} 5. h3 {[%clk 0:02:00]}  Nf5 {[%clk 0:02:42]} 6. Kf2 {[%clk 0:01:46]}  h5 {[%clk 0:02:39]} 7. Nc3 {[%clk 0:01:43]}  g6 {[%clk 0:02:24]} 8. g3 {[%clk 0:01:35]}  h4 {[%clk 0:02:09]} 9. g4 {[%clk 0:01:33]}  Ng3 {[%clk 0:02:10]} 10. Bb5 {[%clk 0:01:32]}  d4 {[%clk 0:02:04]} 11. Bxc6+ {[%clk 0:01:27]}  bxc6 {[%clk 0:02:04]} 12. Ne2 {[%clk 0:01:28]}  Nxh1+ {[%clk 0:01:52]} 13. Qxh1 {[%clk 0:01:29]}  Be6 {[%clk 0:01:48]} 14. d3 {[%clk 0:01:26]}  Bd5 {[%clk 0:01:45]} 15. Qe1 {[%clk 0:01:20]}  Bxf3 {[%clk 0:01:20]} 16. Kxf3 {[%clk 0:01:17]}  Qd5+ {[%clk 0:01:21]} 17. Kf2 {[%clk 0:01:15]}  c4 {[%clk 0:01:12]} 18. Ng1 {[%clk 0:01:10]}  e6 {[%clk 0:01:00]} 19. Nf3 {[%clk 0:01:05]}  Be7 {[%clk 0:00:56]} 20. Qe2 {[%clk 0:01:03]}  cxd3 {[%clk 0:00:54]} 21. cxd3 {[%clk 0:01:04]}  O-O {[%clk 0:00:50]} 22. Bd2 {[%clk 0:01:03]}  Rab8 {[%clk 0:00:49]} 23. b3 {[%clk 0:01:01]}  a5 {[%clk 0:00:45]} 24. Rc1 {[%clk 0:01:01]}  a4 {[%clk 0:00:44]} 25. bxa4 {[%clk 0:01:00]}  Rb2 {[%clk 0:00:43]} 26. Rc4 {[%clk 0:00:54]}  Rfb8 {[%clk 0:00:37]} 27. Qd1 {[%clk 0:00:53]}  Rxa2 {[%clk 0:00:35]} 28. Qc1 {[%clk 0:00:48]}  Rbb2 {[%clk 0:00:35]} 29. Rxc6 {[%clk 0:00:47]}  Rxd2+ {[%clk 0:00:19]} 30. Nxd2 {[%clk 0:00:47]}  Rxd2+ {[%clk 0:00:20]} 31. Qxd2 {[%clk 0:00:47]}  Qxc6 {[%clk 0:00:20]} 32. a5 {[%clk 0:00:40]}  Qh1 {[%clk 0:00:16]} 33. a6 {[%clk 0:00:37]}  Qh2+ {[%clk 0:00:16]} 34. Ke1 {[%clk 0:00:37]}  Qxd2+ {[%clk 0:00:14]} 35. Kxd2 {[%clk 0:00:37]}  Bc5 {[%clk 0:00:14]} 36. Kc2 {[%clk 0:00:38]}  Kg7 {[%clk 0:00:11]} 37. Kb3 {[%clk 0:00:37]}  g5 {[%clk 0:00:11]} 38. Kc4 {[%clk 0:00:29]}  Ba7 {[%clk 0:00:11]} 39. fxg5 {[%clk 0:00:28]}  Kg6 {[%clk 0:00:07]} 40. Kb5 {[%clk 0:00:28]}  Kxg5 {[%clk 0:00:05]} 41. Kc6 {[%clk 0:00:28]}  Kf4 {[%clk 0:00:03]} 42. Kb7 {[%clk 0:00:22]}  Bc5 {[%clk 0:00:03]} 43. Kc6 {[%clk 0:00:22]}  Ba7 {[%clk 0:00:03]} 44. Kb7 {[%clk 0:00:22]}  Bc5 {[%clk 0:00:03]} 45. Kc6 {[%clk 0:00:15]}  Ba7 {[%clk 0:00:03]} 1/2-1/2


[Site "https://www.chess.com"]

[Event "Titled Tuesday Blitz July 18 Early 2023"]
[White "Mika, Tomasz"]
[Black "realmadridfc123"]
[WhiteFideId "1132970"]
[WhiteElo "2415"]
[BlackElo "2740"]
[Result "0-1"]
[Round "1"]
[TimeControl "180+2"]
[Date "2023.07.18"]
[WhiteClock "0:00:00"]
[BlackClock "0:00:06"]
[Board "81"]

1. d4 {[%clk 0:02:58]}  d5 {[%clk 0:02:58]} 2. Bf4 {[%clk 0:02:57]}  Nf6 {[%clk 0:02:54]} 3. Nf3 {[%clk 0:02:57]}  c5 {[%clk 0:02:54]} 4. e3 {[%clk 0:02:57]}  Nc6 {[%clk 0:02:49]} 5. Nbd2 {[%clk 0:02:57]}  Bg4 {[%clk 0:02:41]} 6. c3 {[%clk 0:02:55]}  e6 {[%clk 0:02:39]} 7. Qa4 {[%clk 0:02:54]}  Nd7 {[%clk 0:01:39]} 8. Bb5 {[%clk 0:02:46]}  Qb6 {[%clk 0:01:34]} 9. Ne5 {[%clk 0:02:39]}  Ndxe5 {[%clk 0:01:29]} 10. Bxe5 {[%clk 0:02:37]}  a6 {[%clk 0:01:28]} 11. Bxc6+ {[%clk 0:02:31]}  Qxc6 {[%clk 0:01:28]} 12. Qxc6+ {[%clk 0:02:29]}  bxc6 {[%clk 0:01:29]} 13. f3 {[%clk 0:02:22]}  Bf5 {[%clk 0:01:22]} 14. dxc5 {[%clk 0:02:17]}  Bxc5 {[%clk 0:01:21]} 15. Ke2 {[%clk 0:02:13]}  f6 {[%clk 0:01:19]} 16. Bg3 {[%clk 0:02:04]}  e5 {[%clk 0:01:19]} 17. e4 {[%clk 0:02:01]}  Be6 {[%clk 0:01:13]} 18. Bf2 {[%clk 0:02:00]}  Bd6 {[%clk 0:01:11]} 19. b4 {[%clk 0:01:34]}  Ke7 {[%clk 0:00:56]} 20. Nb3 {[%clk 0:01:31]}  d4 {[%clk 0:00:39]} 21. cxd4 {[%clk 0:01:29]}  Bc4+ {[%clk 0:00:38]} 22. Kd1 {[%clk 0:01:20]}  Bxb4 {[%clk 0:00:37]} 23. Rc1 {[%clk 0:01:17]}  Bb5 {[%clk 0:00:35]} 24. Kc2 {[%clk 0:01:11]}  exd4 {[%clk 0:00:15]} 25. Nxd4 {[%clk 0:01:08]}  Ba4+ {[%clk 0:00:14]} 26. Kb2 {[%clk 0:01:05]}  Rab8 {[%clk 0:00:13]} 27. Ka1 {[%clk 0:00:58]}  Ba3 {[%clk 0:00:11]} 28. Rb1 {[%clk 0:00:46]}  g6 {[%clk 0:00:07]} 29. Nb3 {[%clk 0:00:43]}  Rb5 {[%clk 0:00:06]} 30. Bd4 {[%clk 0:00:27]}  Rhb8 {[%clk 0:00:05]} 31. Rhd1 {[%clk 0:00:27]}  c5 {[%clk 0:00:04]} 32. Bc3 {[%clk 0:00:25]}  c4 {[%clk 0:00:04]} 33. Nd4 {[%clk 0:00:23]}  Bxd1 {[%clk 0:00:03]} 34. Nc6+ {[%clk 0:00:22]}  Kf7 {[%clk 0:00:03]} 35. Nxb8 {[%clk 0:00:17]}  Bc2 {[%clk 0:00:04]} 36. Rxb5 {[%clk 0:00:12]}  axb5 {[%clk 0:00:04]} 37. Nc6 {[%clk 0:00:12]}  Bd3 {[%clk 0:00:05]} 38. Nb4 {[%clk 0:00:09]}  Bf1 {[%clk 0:00:05]} 39. g3 {[%clk 0:00:06]}  Bg2 {[%clk 0:00:05]} 40. f4 {[%clk 0:00:05]}  Bxe4 {[%clk 0:00:06]} 41. Bd2 {[%clk 0:00:04]}  h5 {[%clk 0:00:05]} 42. Bc3 {[%clk 0:00:04]}  Ke6 {[%clk 0:00:06]} 43. Bd2 {[%clk 0:00:04]}  g5 {[%clk 0:00:06]} 44. fxg5 {[%clk 0:00:04]}  fxg5 {[%clk 0:00:07]} 45. Bxg5 {[%clk 0:00:00]}  Bxb4 {[%clk 0:00:06]} 0-1


[Site "https://www.chess.com"]

[Event "Titled Tuesday Blitz July 18 Early 2023"]
[White "Preotu, Razvan"]
[Black "Harriott, Tyrell"]
[WhiteFideId "2613280"]
[BlackFideId "2086484"]
[WhiteElo "2738"]
[BlackElo "2414"]
[Result "1-0"]
[Round "1"]
[TimeControl "180+2"]
[Date "2023.07.18"]
[WhiteClock "0:00:39"]
[BlackClock "0:00:49"]
[Board "82"]

1. e4 {[%clk 0:02:56]}  d5 {[%clk 0:02:52]} 2. exd5 {[%clk 0:02:56]}  Nf6 {[%clk 0:02:51]} 3. d4 {[%clk 0:02:56]}  Qxd5 {[%clk 0:02:50]} 4. c4 {[%clk 0:02:50]}  Qe4+ {[%clk 0:02:50]} 5. Ne2 {[%clk 0:02:45]}  e5 {[%clk 0:02:49]} 6. Nc3 {[%clk 0:02:44]}  Bb4 {[%clk 0:02:49]} 7. Bd2 {[%clk 0:02:28]}  Bxc3 {[%clk 0:02:42]} 8. Bxc3 {[%clk 0:02:29]}  exd4 {[%clk 0:02:40]} 9. Qxd4 {[%clk 0:02:30]}  Nc6 {[%clk 0:02:40]} 10. Qxe4+ {[%clk 0:02:26]}  Nxe4 {[%clk 0:02:40]} 11. Bxg7 {[%clk 0:02:25]}  Rg8 {[%clk 0:02:39]} 12. Bc3 {[%clk 0:02:25]}  Bf5 {[%clk 0:02:35]} 13. Rd1 {[%clk 0:01:54]}  Ke7 {[%clk 0:02:09]} 14. Ng3 {[%clk 0:01:20]}  Bg6 {[%clk 0:02:04]} 15. Nxe4 {[%clk 0:01:18]}  Bxe4 {[%clk 0:02:04]} 16. f3 {[%clk 0:01:19]}  Bg6 {[%clk 0:02:00]} 17. Kf2 {[%clk 0:01:17]}  Rgd8 {[%clk 0:01:59]} 18. Be2 {[%clk 0:01:17]}  Bc2 {[%clk 0:01:47]} 19. Rc1 {[%clk 0:01:15]}  Bf5 {[%clk 0:01:45]} 20. Rhe1 {[%clk 0:01:13]}  f6 {[%clk 0:01:35]} 21. Bd3+ {[%clk 0:01:10]}  Be6 {[%clk 0:01:31]} 22. Bf5 {[%clk 0:01:06]}  Ne5 {[%clk 0:01:31]} 23. Bxe5 {[%clk 0:01:02]}  fxe5 {[%clk 0:01:24]} 24. Rxe5 {[%clk 0:01:01]}  Kf6 {[%clk 0:01:25]} 25. Rxe6+ {[%clk 0:01:00]}  Kxf5 {[%clk 0:01:25]} 26. Rce1 {[%clk 0:00:57]}  Rd2+ {[%clk 0:01:24]} 27. Kf1 {[%clk 0:00:45]}  Rxb2 {[%clk 0:01:11]} 28. R1e5+ {[%clk 0:00:37]}  Kf4 {[%clk 0:01:10]} 29. g3+ {[%clk 0:00:38]}  Kxf3 {[%clk 0:01:07]} 30. Rf6+ {[%clk 0:00:39]}  Kg4 {[%clk 0:00:49]} 31. Rf4+ {[%clk 0:00:39]} 1-0


[Site "https://www.chess.com"]

[Event "Titled Tuesday Blitz July 18 Early 2023"]
[White "Xu, Yi"]
[Black "Bueno, Alfeu Junior Varela"]
[WhiteFideId "8605564"]
[BlackFideId "2108879"]
[WhiteElo "2725"]
[BlackElo "2408"]
[Result "1-0"]
[Round "1"]
[TimeControl "180+2"]
[Date "2023.07.18"]
[WhiteClock "0:01:46"]
[BlackClock "0:00:00"]
[Board "86"]

1. e4 {[%clk 0:02:59]}  e6 {[%clk 0:02:58]} 2. d4 {[%clk 0:02:58]}  d5 {[%clk 0:02:58]} 3. e5 {[%clk 0:02:57]}  c5 {[%clk 0:02:57]} 4. c3 {[%clk 0:02:55]}  Nc6 {[%clk 0:02:57]} 5. Nf3 {[%clk 0:02:54]}  Bd7 {[%clk 0:02:57]} 6. Be2 {[%clk 0:02:53]}  Nge7 {[%clk 0:02:56]} 7. O-O {[%clk 0:02:53]}  Nf5 {[%clk 0:02:56]} 8. Bd3 {[%clk 0:02:51]}  Nh4 {[%clk 0:02:55]} 9. Nxh4 {[%clk 0:02:49]}  Qxh4 {[%clk 0:02:54]} 10. Be3 {[%clk 0:02:48]}  Rc8 {[%clk 0:02:38]} 11. Nd2 {[%clk 0:02:40]}  Be7 {[%clk 0:02:27]} 12. a3 {[%clk 0:02:38]}  f6 {[%clk 0:02:24]} 13. Nf3 {[%clk 0:02:35]}  Qh5 {[%clk 0:02:23]} 14. exf6 {[%clk 0:02:34]}  gxf6 {[%clk 0:02:21]} 15. dxc5 {[%clk 0:02:34]}  Rg8 {[%clk 0:02:16]} 16. b4 {[%clk 0:02:29]}  e5 {[%clk 0:02:09]} 17. Be2 {[%clk 0:02:28]}  Bh3 {[%clk 0:02:03]} 18. Ng5 {[%clk 0:02:24]}  Qh4 {[%clk 0:01:57]} 19. Nxh3 {[%clk 0:02:18]}  Qxh3 {[%clk 0:01:56]} 20. Qxd5 {[%clk 0:02:18]}  Rg7 {[%clk 0:01:38]} 21. Kh1 {[%clk 0:02:18]}  Qh4 {[%clk 0:01:36]} 22. Rad1 {[%clk 0:02:16]}  Kf8 {[%clk 0:01:27]} 23. Qe6 {[%clk 0:02:14]}  Re8 {[%clk 0:01:22]} 24. Rd7 {[%clk 0:02:04]}  e4 {[%clk 0:00:00]} 25. g3 {[%clk 0:01:46]} 1-0


[Site "https://www.chess.com"]

[Event "Titled Tuesday Blitz July 18 Early 2023"]
[White "Panesar Vedant"]
[Black "Villarreal, Agustin"]
[WhiteFideId "35033018"]
[BlackFideId "125687"]
[WhiteElo "2723"]
[BlackElo "2407"]
[Result "1-0"]
[Round "1"]
[TimeControl "180+2"]
[Date "2023.07.18"]
[WhiteClock "0:00:17"]
[BlackClock "0:00:17"]
[Board "88"]

1. d4 {[%clk 0:03:00]}  Nf6 {[%clk 0:02:59]} 2. c4 {[%clk 0:02:59]}  e6 {[%clk 0:02:59]} 3. g3 {[%clk 0:02:59]}  d5 {[%clk 0:02:59]} 4. Bg2 {[%clk 0:02:59]}  dxc4 {[%clk 0:03:00]} 5. Nf3 {[%clk 0:02:58]}  c5 {[%clk 0:02:59]} 6. O-O {[%clk 0:02:58]}  Nc6 {[%clk 0:02:59]} 7. dxc5 {[%clk 0:02:53]}  Qxd1 {[%clk 0:02:58]} 8. Rxd1 {[%clk 0:02:53]}  Bxc5 {[%clk 0:02:59]} 9. Nbd2 {[%clk 0:02:54]}  c3 {[%clk 0:03:00]} 10. bxc3 {[%clk 0:02:54]}  O-O {[%clk 0:03:00]} 11. Nb3 {[%clk 0:02:54]}  Be7 {[%clk 0:03:01]} 12. c4 {[%clk 0:02:44]}  Bd7 {[%clk 0:03:00]} 13. Bb2 {[%clk 0:02:44]}  Rfc8 {[%clk 0:03:00]} 14. c5 {[%clk 0:02:40]}  Be8 {[%clk 0:02:57]} 15. Nfd2 {[%clk 0:02:38]}  Rab8 {[%clk 0:02:38]} 16. Rac1 {[%clk 0:02:31]}  b6 {[%clk 0:02:34]} 17. cxb6 {[%clk 0:02:28]}  axb6 {[%clk 0:02:30]} 18. Nc4 {[%clk 0:02:29]}  Nb4 {[%clk 0:02:07]} 19. a3 {[%clk 0:02:04]}  Ba4 {[%clk 0:01:57]} 20. Ncd2 {[%clk 0:01:41]}  Na2 {[%clk 0:01:11]} 21. Rxc8+ {[%clk 0:01:31]}  Rxc8 {[%clk 0:01:12]} 22. Ra1 {[%clk 0:01:22]}  Nc3 {[%clk 0:01:11]} 23. Bf3 {[%clk 0:01:20]}  Ncd5 {[%clk 0:01:01]} 24. Nd4 {[%clk 0:01:15]}  Nd7 {[%clk 0:00:45]} 25. Bxd5 {[%clk 0:00:42]}  exd5 {[%clk 0:00:44]} 26. Rc1 {[%clk 0:00:39]}  Rxc1+ {[%clk 0:00:42]} 27. Bxc1 {[%clk 0:00:40]}  Nc5 {[%clk 0:00:39]} 28. Kg2 {[%clk 0:00:36]}  Bf6 {[%clk 0:00:40]} 29. N2f3 {[%clk 0:00:36]}  Ne4 {[%clk 0:00:38]} 30. Be3 {[%clk 0:00:34]}  Bd7 {[%clk 0:00:37]} 31. Nb3 {[%clk 0:00:30]}  Nc3 {[%clk 0:00:36]} 32. Bxb6 {[%clk 0:00:25]}  Nxe2 {[%clk 0:00:34]} 33. Nc5 {[%clk 0:00:23]}  Bc6 {[%clk 0:00:31]} 34. a4 {[%clk 0:00:20]}  d4 {[%clk 0:00:26]} 35. a5 {[%clk 0:00:20]}  Be7 {[%clk 0:00:18]} 36. a6 {[%clk 0:00:20]}  Bxc5 {[%clk 0:00:18]} 37. Bxc5 {[%clk 0:00:20]}  d3 {[%clk 0:00:18]} 38. Be3 {[%clk 0:00:20]}  Nc3 {[%clk 0:00:17]} 39. Bd2 {[%clk 0:00:15]}  Ne4 {[%clk 0:00:17]} 40. Kf1 {[%clk 0:00:14]}  Kf8 {[%clk 0:00:13]} 41. Ke1 {[%clk 0:00:13]}  Ke7 {[%clk 0:00:14]} 42. Ne5 {[%clk 0:00:12]}  Ba8 {[%clk 0:00:13]} 43. Nxd3 {[%clk 0:00:12]}  Nxd2 {[%clk 0:00:13]} 44. Kxd2 {[%clk 0:00:12]}  Kd6 {[%clk 0:00:14]} 45. Ke3 {[%clk 0:00:12]}  Kc6 {[%clk 0:00:14]} 46. Ne5+ {[%clk 0:00:12]}  Kb6 {[%clk 0:00:14]} 47. Nxf7 {[%clk 0:00:13]}  Kxa6 {[%clk 0:00:15]} 48. Ng5 {[%clk 0:00:13]}  h6 {[%clk 0:00:16]} 49. Ne6 {[%clk 0:00:14]}  g6 {[%clk 0:00:16]} 50. h4 {[%clk 0:00:14]}  Kb6 {[%clk 0:00:16]} 51. Nf8 {[%clk 0:00:13]}  g5 {[%clk 0:00:15]} 52. hxg5 {[%clk 0:00:14]}  hxg5 {[%clk 0:00:16]} 53. Ne6 {[%clk 0:00:15]}  g4 {[%clk 0:00:15]} 54. Kf4 {[%clk 0:00:16]}  Bf3 {[%clk 0:00:15]} 55. Ng5 {[%clk 0:00:16]}  Bd1 {[%clk 0:00:14]} 56. Ne4 {[%clk 0:00:17]}  Kc6 {[%clk 0:00:13]} 57. Nf6 {[%clk 0:00:17]}  Kd6 {[%clk 0:00:13]} 58. Nxg4 {[%clk 0:00:18]}  Ke7 {[%clk 0:00:14]} 59. Nh2 {[%clk 0:00:18]}  Kf6 {[%clk 0:00:15]} 60. g4 {[%clk 0:00:18]}  Ba4 {[%clk 0:00:16]} 61. Nf3 {[%clk 0:00:19]}  Kg7 {[%clk 0:00:16]} 62. Kg3 {[%clk 0:00:18]}  Bc6 {[%clk 0:00:17]} 63. Nh4 {[%clk 0:00:19]}  Ba8 {[%clk 0:00:18]} 64. f4 {[%clk 0:00:20]}  Bb7 {[%clk 0:00:19]} 65. f5 {[%clk 0:00:20]}  Bc8 {[%clk 0:00:19]} 66. Kf4 {[%clk 0:00:21]}  Kf6 {[%clk 0:00:20]} 67. g5+ {[%clk 0:00:22]}  Kg7 {[%clk 0:00:20]} 68. Nf3 {[%clk 0:00:21]}  Kf7 {[%clk 0:00:21]} 69. Ne5+ {[%clk 0:00:21]}  Kg7 {[%clk 0:00:21]} 70. f6+ {[%clk 0:00:22]}  Kf8 {[%clk 0:00:21]} 71. g6 {[%clk 0:00:22]}  Be6 {[%clk 0:00:21]} 72. Kg5 {[%clk 0:00:23]}  Kg8 {[%clk 0:00:21]} 73. Kh6 {[%clk 0:00:23]}  Kh8 {[%clk 0:00:20]} 74. f7 {[%clk 0:00:19]}  Bxf7 {[%clk 0:00:15]} 75. Nxf7+ {[%clk 0:00:19]}  Kg8 {[%clk 0:00:15]} 76. Ng5 {[%clk 0:00:17]}  Kh8 {[%clk 0:00:16]} 77. Ne4 {[%clk 0:00:16]}  Kg8 {[%clk 0:00:17]} 78. Nf6+ {[%clk 0:00:17]}  Kh8 {[%clk 0:00:17]} 79. g7# {[%clk 0:00:17]} 1-0


[Site "https://www.chess.com"]

[Event "Titled Tuesday Blitz July 18 Early 2023"]
[White "Mazurkiewicz, Michal"]
[Black "Fiorito, Joaquin"]
[WhiteFideId "1124943"]
[BlackFideId "180173"]
[WhiteElo "2405"]
[BlackElo "2721"]
[Result "0-1"]
[Round "1"]
[TimeControl "180+2"]
[Date "2023.07.18"]
[WhiteClock "0:00:00"]
[BlackClock "0:00:56"]
[Board "91"]

1. e4 {[%clk 0:02:59]}  c5 {[%clk 0:02:59]} 2. Nf3 {[%clk 0:02:59]}  d6 {[%clk 0:03:00]} 3. g3 {[%clk 0:03:00]}  Nf6 {[%clk 0:02:58]} 4. d3 {[%clk 0:03:00]}  g6 {[%clk 0:02:59]} 5. Bg2 {[%clk 0:03:00]}  Bg7 {[%clk 0:03:00]} 6. O-O {[%clk 0:03:00]}  O-O {[%clk 0:03:01]} 7. Re1 {[%clk 0:03:00]}  Nc6 {[%clk 0:03:01]} 8. e5 {[%clk 0:03:00]}  dxe5 {[%clk 0:02:56]} 9. Nxe5 {[%clk 0:03:01]}  Nxe5 {[%clk 0:02:57]} 10. Rxe5 {[%clk 0:03:02]}  Nd7 {[%clk 0:02:56]} 11. Re1 {[%clk 0:03:01]}  e6 {[%clk 0:02:53]} 12. Nd2 {[%clk 0:03:00]}  Qc7 {[%clk 0:02:34]} 13. Nc4 {[%clk 0:02:59]}  Rb8 {[%clk 0:02:28]} 14. Qe2 {[%clk 0:02:59]}  Re8 {[%clk 0:02:25]} 15. a4 {[%clk 0:02:23]}  b6 {[%clk 0:02:23]} 16. c3 {[%clk 0:00:48]}  Ba6 {[%clk 0:02:09]} 17. Bd2 {[%clk 0:00:40]}  Rbd8 {[%clk 0:02:08]} 18. a5 {[%clk 0:00:34]}  b5 {[%clk 0:02:00]} 19. Ne3 {[%clk 0:00:33]}  Ne5 {[%clk 0:01:56]} 20. d4 {[%clk 0:00:26]}  cxd4 {[%clk 0:01:50]} 21. cxd4 {[%clk 0:00:27]}  Rxd4 {[%clk 0:01:29]} 22. Bc3 {[%clk 0:00:27]}  Rdd8 {[%clk 0:01:30]} 23. Nc2 {[%clk 0:00:27]}  Nd3 {[%clk 0:01:15]} 24. Bxg7 {[%clk 0:00:18]}  Kxg7 {[%clk 0:01:16]} 25. Red1 {[%clk 0:00:14]}  b4 {[%clk 0:01:17]} 26. Qe3 {[%clk 0:00:08]}  b3 {[%clk 0:01:00]} 27. Nd4 {[%clk 0:00:08]}  Nxb2 {[%clk 0:00:58]} 28. Nc6 {[%clk 0:00:08]}  Rxd1+ {[%clk 0:00:57]} 29. Rxd1 {[%clk 0:00:04]}  Nxd1 {[%clk 0:00:58]} 30. Qd4+ {[%clk 0:00:05]}  e5 {[%clk 0:00:58]} 31. Qxd1 {[%clk 0:00:05]}  Bb7 {[%clk 0:00:55]} 32. Nb4 {[%clk 0:00:01]}  Bxg2 {[%clk 0:00:54]} 33. Kxg2 {[%clk 0:00:02]}  Qb7+ {[%clk 0:00:55]} 34. Nd5 {[%clk 0:00:00]}  Rd8 {[%clk 0:00:56]} 0-1


[Site "https://www.chess.com"]

[Event "Titled Tuesday Blitz July 18 Early 2023"]
[White "Amilal Munkhdalai"]
[Black "Bazilius, Augustinas"]
[WhiteFideId "4903250"]
[BlackFideId "12832251"]
[WhiteElo "2708"]
[BlackElo "2402"]
[Result "1-0"]
[Round "1"]
[TimeControl "180+2"]
[Date "2023.07.18"]
[WhiteClock "0:02:04"]
[BlackClock "0:01:38"]
[Board "94"]

1. e4 {[%clk 0:02:57]}  c5 {[%clk 0:02:56]} 2. Nf3 {[%clk 0:02:57]}  a6 {[%clk 0:02:57]} 3. d4 {[%clk 0:02:57]}  cxd4 {[%clk 0:02:58]} 4. Nxd4 {[%clk 0:02:57]}  Nf6 {[%clk 0:02:59]} 5. Nc3 {[%clk 0:02:56]}  e5 {[%clk 0:02:59]} 6. Nf3 {[%clk 0:02:56]}  Bb4 {[%clk 0:02:59]} 7. Bd3 {[%clk 0:02:50]}  d5 {[%clk 0:02:59]} 8. Qe2 {[%clk 0:02:37]}  dxe4 {[%clk 0:02:43]} 9. Bxe4 {[%clk 0:02:36]}  Nxe4 {[%clk 0:02:42]} 10. Qxe4 {[%clk 0:02:36]}  Bxc3+ {[%clk 0:02:42]} 11. bxc3 {[%clk 0:02:36]}  O-O {[%clk 0:02:43]} 12. Ng5 {[%clk 0:02:28]}  f5 {[%clk 0:02:18]} 13. Qc4+ {[%clk 0:02:23]}  Kh8 {[%clk 0:02:18]} 14. Nf7+ {[%clk 0:02:21]}  Rxf7 {[%clk 0:02:19]} 15. Qxf7 {[%clk 0:02:22]}  Nc6 {[%clk 0:02:16]} 16. O-O {[%clk 0:02:21]}  Bd7 {[%clk 0:01:58]} 17. Rd1 {[%clk 0:02:15]}  Be6 {[%clk 0:01:43]} 18. Rxd8+ {[%clk 0:02:06]}  Rxd8 {[%clk 0:01:43]} 19. Qh5 {[%clk 0:02:04]}  Bf7 {[%clk 0:01:38]} 1-0


[Site "https://www.chess.com"]

[Event "Titled Tuesday Blitz July 18 Early 2023"]
[White "Hilary46"]
[Black "Hoffmann, Asa"]
[BlackFideId "2001470"]
[WhiteElo "2706"]
[BlackElo "2397"]
[Result "1-0"]
[Round "1"]
[TimeControl "180+2"]
[Date "2023.07.18"]
[WhiteClock "0:00:37"]
[BlackClock "0:00:09"]
[Board "96"]

1. e4 {[%clk 0:03:00]}  d6 {[%clk 0:02:56]} 2. d4 {[%clk 0:02:59]}  Nf6 {[%clk 0:02:53]} 3. Nc3 {[%clk 0:02:59]}  c6 {[%clk 0:02:53]} 4. f4 {[%clk 0:02:54]}  Qa5 {[%clk 0:02:52]} 5. Bd3 {[%clk 0:02:46]}  e5 {[%clk 0:02:51]} 6. Nf3 {[%clk 0:02:41]}  exd4 {[%clk 0:02:50]} 7. Nxd4 {[%clk 0:02:41]}  Qb6 {[%clk 0:02:50]} 8. Nb3 {[%clk 0:02:38]}  a5 {[%clk 0:02:49]} 9. a4 {[%clk 0:02:35]}  Na6 {[%clk 0:02:48]} 10. Qe2 {[%clk 0:02:34]}  Nb4 {[%clk 0:02:47]} 11. Be3 {[%clk 0:02:34]}  Nxd3+ {[%clk 0:02:44]} 12. Qxd3 {[%clk 0:02:34]}  Qa6 {[%clk 0:02:38]} 13. Qxa6 {[%clk 0:02:23]}  Rxa6 {[%clk 0:02:37]} 14. O-O {[%clk 0:02:24]}  Be7 {[%clk 0:02:36]} 15. Rad1 {[%clk 0:02:15]}  O-O {[%clk 0:02:34]} 16. f5 {[%clk 0:02:15]}  Ng4 {[%clk 0:02:28]} 17. Bf4 {[%clk 0:02:14]}  Ne5 {[%clk 0:02:27]} 18. Nd2 {[%clk 0:02:08]}  g6 {[%clk 0:02:12]} 19. Bxe5 {[%clk 0:02:06]}  dxe5 {[%clk 0:02:11]} 20. Nc4 {[%clk 0:02:07]}  Bc5+ {[%clk 0:01:55]} 21. Kh1 {[%clk 0:02:07]}  Bd4 {[%clk 0:01:47]} 22. Ne2 {[%clk 0:02:08]}  b5 {[%clk 0:01:44]} 23. Nxd4 {[%clk 0:02:08]}  bxc4 {[%clk 0:01:31]} 24. Nf3 {[%clk 0:01:46]}  f6 {[%clk 0:01:12]} 25. fxg6 {[%clk 0:01:42]}  hxg6 {[%clk 0:01:12]} 26. Rd6 {[%clk 0:01:42]}  Rb6 {[%clk 0:01:05]} 27. Nd2 {[%clk 0:01:39]}  Rxb2 {[%clk 0:01:02]} 28. Nxc4 {[%clk 0:01:40]}  Rxc2 {[%clk 0:01:02]} 29. Nxa5 {[%clk 0:01:40]}  c5 {[%clk 0:00:57]} 30. h3 {[%clk 0:01:39]}  Kg7 {[%clk 0:00:55]} 31. Nc6 {[%clk 0:01:34]}  c4 {[%clk 0:00:49]} 32. Ne7 {[%clk 0:01:34]}  Bb7 {[%clk 0:00:41]} 33. Rd7 {[%clk 0:01:26]}  Bxe4 {[%clk 0:00:38]} 34. Nf5+ {[%clk 0:01:26]}  Kh8 {[%clk 0:00:32]} 35. Nh4 {[%clk 0:01:01]}  g5 {[%clk 0:00:28]} 36. Re1 {[%clk 0:01:01]}  Bd3 {[%clk 0:00:22]} 37. Nf3 {[%clk 0:00:57]}  Rb8 {[%clk 0:00:17]} 38. a5 {[%clk 0:00:43]}  Rbb2 {[%clk 0:00:16]} 39. Nxe5 {[%clk 0:00:36]}  fxe5 {[%clk 0:00:13]} 40. Rxe5 {[%clk 0:00:37]}  Rxg2 {[%clk 0:00:09]} 41. Re8# {[%clk 0:00:37]} 1-0


[Site "https://www.chess.com"]

[Event "Titled Tuesday Blitz July 18 Early 2023"]
[White "Atakhan, Abtin"]
[Black "Yirik, Volkan"]
[WhiteFideId "22502203"]
[BlackFideId "6300782"]
[WhiteElo "2705"]
[BlackElo "2393"]
[Result "1-0"]
[Round "1"]
[TimeControl "180+2"]
[Date "2023.07.18"]
[WhiteClock "0:01:20"]
[BlackClock "0:02:03"]
[Board "98"]

1. d4 {[%clk 0:02:47]}  Nf6 {[%clk 0:02:59]} 2. c4 {[%clk 0:02:47]}  c5 {[%clk 0:02:59]} 3. d5 {[%clk 0:02:47]}  b5 {[%clk 0:02:59]} 4. cxb5 {[%clk 0:02:48]}  a6 {[%clk 0:02:59]} 5. bxa6 {[%clk 0:02:49]}  Bxa6 {[%clk 0:02:59]} 6. Nc3 {[%clk 0:02:49]}  d6 {[%clk 0:03:00]} 7. Nf3 {[%clk 0:02:48]}  g6 {[%clk 0:03:00]} 8. e4 {[%clk 0:02:49]}  Bxf1 {[%clk 0:03:00]} 9. Kxf1 {[%clk 0:02:50]}  Bg7 {[%clk 0:03:01]} 10. g3 {[%clk 0:02:50]}  O-O {[%clk 0:03:02]} 11. Kg2 {[%clk 0:02:51]}  Nbd7 {[%clk 0:03:02]} 12. a4 {[%clk 0:02:52]}  Qa5 {[%clk 0:03:03]} 13. Qc2 {[%clk 0:02:46]}  Rfb8 {[%clk 0:03:03]} 14. Ra3 {[%clk 0:02:33]}  Ng4 {[%clk 0:03:02]} 15. Bg5 {[%clk 0:02:29]}  Kf8 {[%clk 0:02:58]} 16. h3 {[%clk 0:02:21]}  Nge5 {[%clk 0:02:58]} 17. Nd2 {[%clk 0:02:19]}  Qa6 {[%clk 0:02:54]} 18. Nb5 {[%clk 0:02:17]}  f6 {[%clk 0:02:39]} 19. Be3 {[%clk 0:02:14]}  Rb7 {[%clk 0:02:35]} 20. f4 {[%clk 0:02:14]}  Nf7 {[%clk 0:02:35]} 21. Nc4 {[%clk 0:02:13]}  Nb6 {[%clk 0:02:31]} 22. Nxb6 {[%clk 0:02:09]}  Qxb6 {[%clk 0:02:30]} 23. h4 {[%clk 0:02:08]}  h5 {[%clk 0:02:23]} 24. Rf1 {[%clk 0:02:06]}  Nh6 {[%clk 0:02:23]} 25. Qc4 {[%clk 0:01:59]}  Ng4 {[%clk 0:02:20]} 26. Bg1 {[%clk 0:01:46]}  Qa5 {[%clk 0:02:18]} 27. Rd1 {[%clk 0:01:41]}  Qb4 {[%clk 0:02:17]} 28. Qxb4 {[%clk 0:01:38]}  cxb4 {[%clk 0:02:17]} 29. Raa1 {[%clk 0:01:38]}  f5 {[%clk 0:02:16]} 30. exf5 {[%clk 0:01:34]}  gxf5 {[%clk 0:02:14]} 31. Bd4 {[%clk 0:01:21]}  Bxd4 {[%clk 0:02:12]} 32. Nxd4 {[%clk 0:01:20]}  Rc7 {[%clk 0:02:03]} 33. Ne6+ {[%clk 0:01:20]} 1-0


[Site "https://www.chess.com"]